fUST/lending_fUST_20240331
["ID","MTS","AMOUNT","RATE_DAILY","PERIOD"]
[321057850,1711840246941,-500.0,0.00038356,4]
[321057852,1711840246950,-500.0,0.00038356,4]
[321057854,1711840246959,-1067.93,0.00038356,4]
[321057856,1711840246968,-1193.03,0.00038356,4]
[321057858,1711840246977,-19774.43,0.00038356,4]
[321057860,1711840246986,-500.0,0.00038356,4]
[321057862,1711840246995,-500.0,0.00038356,4]
[321057864,1711840247005,-500.0,0.00038356,4]
[321057866,1711840247014,-13505.38,0.00038356,4]
[321057868,1711840247023,-3378.61,0.00038356,4]
[321057870,1711840247033,-500.0,0.00038356,4]
[321057873,1711840247048,-914.89,0.00038356,4]
[321057874,1711840247057,-500.0,0.00038356,4]
[321057876,1711840247066,-500.0,0.00038356,4]
[321057878,1711840247076,-590.65,0.00038356,4]
[321057880,1711840247086,-500.0,0.00038356,4]
[321057882,1711840247095,-500.0,0.00038356,4]
[321057884,1711840247104,-587.60404194,0.00038356,4]
[321057886,1711840247113,-948.3,0.00038356,4]
[321057888,1711840247124,-3030.22,0.00038356,4]
[321057890,1711840247134,-500.0,0.00038356,4]
[321057892,1711840247143,-5262.58,0.00038356,4]
[321057894,1711840247155,-1166.49,0.00038356,4]
[321057896,1711840247164,-1268.88,0.00038356,4]
[321057898,1711840247173,-500.0,0.00038356,4]
[321057900,1711840247183,-1765.92,0.00038356,4]
[321057902,1711840247192,-1062.03,0.00038356,4]
[321057905,1711840247201,-834.25,0.00038356,4]
[321057906,1711840247212,-1112.04,0.00038356,4]
[321057908,1711840247221,-500.0,0.00038356,4]
[321057910,1711840247230,-500.0,0.00038356,4]
[321057911,1711840247239,-2207.7,0.00038356,4]
[321057912,1711840247248,-523.45,0.00038356,4]
[321057913,1711840247257,-500.0,0.00038356,4]
[321057914,1711840247266,-500.0,0.00038356,4]
[321057915,1711840247276,-500.0,0.00038356,4]
[321057916,1711840247382,-164.67288217,0.000384,2]
[321057918,1711840247391,-271.40992107,0.000384,4]
[321057920,1711840247400,-160.17426903,0.000384,2]
[321057922,1711840247409,-19486.61650083,0.000384,120]
[321057924,1711840247418,-153.0,0.000384,2]
[321057926,1711840247427,-150.87929656,0.00038563,4]
[321057928,1711840247436,-356.0,0.000386,2]
[321057930,1711840247445,-305.31148423,0.00038627,4]
[321057932,1711840247454,-1365.2839408,0.00038627,4]
[321057933,1711840247463,-192.25327167,0.00038627,4]
[321057935,1711840247473,-2136.6639431,0.00038627,4]
[321057937,1711840247482,-425.21255481,0.00038627,4]
[321057939,1711840247491,-622.80176101,0.00038628,4]
[321057942,1711840247501,-236.94886755,0.00038628,4]
[321057943,1711840247510,-500.0,0.00038629,4]
[321057946,1711840247520,-500.0,0.00038629,4]
[321057948,1711840247529,-500.0,0.00038629,4]
[321057950,1711840247538,-574.0,0.00038629,4]
[321057951,1711840247547,-1000.0,0.00038629,7]
[321057953,1711840247556,-884.2,0.00038629,4]
[321057955,1711840247566,-500.0,0.00038629,4]
[321057957,1711840247575,-580.21,0.00038629,4]
[321057959,1711840247587,-500.0,0.00038629,4]
[321057961,1711840247597,-500.0,0.00038629,4]
[321057963,1711840247606,-500.0,0.00038629,4]
[321057965,1711840247615,-500.0,0.00038629,4]
[321057968,1711840247625,-500.0,0.00038629,4]
[321057970,1711840247634,-37869.50160258,0.0003863,3]
[321057979,1711840247706,-29280.49928118,0.0003863,3]
[321057981,1711840247717,-911.76,0.0003863,2]
[321057983,1711840247726,-500.0,0.0003863,4]
[321057984,1711840247735,-500.0,0.0003863,4]
[321057986,1711840247744,-647.3,0.0003863,4]
[321057988,1711840247754,-500.0,0.0003863,4]
[321057990,1711840247763,-500.0,0.0003863,4]
[321057992,1711840247772,-500.0,0.0003863,4]
[321057994,1711840247782,-500.0,0.0003863,4]
[321057996,1711840247791,-500.0,0.0003863,4]
[321057999,1711840247801,-500.0,0.0003863,4]
[321058001,1711840247811,-500.0,0.0003863,4]
[321058002,1711840247821,-500.0,0.0003863,4]
[321058004,1711840247830,-505.48875361,0.0003863,4]
[321058006,1711840247839,-500.0,0.0003863,4]
[321058008,1711840247849,-500.0,0.0003863,4]
[321058010,1711840247858,-500.0,0.0003863,4]
[321058012,1711840247867,-500.0,0.0003863,4]
[321058014,1711840247877,-500.0,0.0003863,4]
[321058016,1711840247886,-500.0,0.0003863,4]
[321058018,1711840247896,-500.0,0.0003863,4]
[321058020,1711840247904,-500.0,0.0003863,4]
[321058022,1711840247914,-500.0,0.0003863,4]
[321058024,1711840247923,-1104.26,0.0003863,4]
[321058026,1711840247932,-500.0,0.0003863,4]
[321058028,1711840247941,-4078.45,0.0003863,4]
[321058030,1711840247950,-1626.23,0.0003863,4]
[321058032,1711840247959,-1132.56,0.0003863,4]
[321058034,1711840247969,-218.77088372,0.0003863,4]
[321059358,1711840533242,432.12953638,0.000361,2]
[321059359,1711841136400,-500.0,0.00039798,120]
[321059360,1711841157782,-158.87149199,0.00038256,8]
[321059361,1711841157806,-1000.0,0.00038356,7]
[321059362,1711841157832,-1000.0,0.0003863,7]
[321059363,1711841157856,-1000.0,0.00038904,7]
[321059364,1711841157880,-25853.27949422,0.00039,7]
[321059365,1711841157902,-1000.0,0.00039178,7]
[321059366,1711841157925,-1000.0,0.00039452,7]
[321059367,1711841157950,-1000.0,0.00039726,7]
[321059368,1711841157974,-951.76112369,0.0004,15]
[321059369,1711841157995,-1000.0,0.0004,7]
[321059370,1711841158169,-1085.59050034,0.0003653,2]
[321059371,1711841158190,-457.78037861,0.00036945,2]
[321059372,1711841204099,-193.20616723,0.00040361,120]
[321059373,1711841204130,-2129.63739222,0.00040834,30]
[321059374,1711841204152,-8909.66761701,0.00041,120]
[321059375,1711841233503,8914.79901266,0.00041,120]
[321059376,1711841234086,-159.37312703,0.00036576,2]
[321059377,1711841254089,-235.02836297,0.00036904,2]
[321059378,1711841254112,-300.0,0.00036943,3]
[321059379,1711841254134,-125.01848322,0.00036944,3]
[321059380,1711841319282,2129.63739222,0.00041,30]
[321059386,1711841323623,193.20616723,0.00036943,120]
[321059387,1711841331507,8909.66761701,0.00041,120]
[321059388,1711841338567,500.0,0.00039834,120]
[321059393,1711841353508,8914.79901266,0.00041,120]
[321059394,1711841384931,169.668219,0.0003652,2]
[321059395,1711841409955,474.11774431,0.00036202,2]
[321059396,1711841409979,653.0,0.00036202,2]
[321059397,1711841409999,41.69850716,0.00036202,2]
[321059398,1711841417067,380.0,0.00036836,2]
[321059455,1711841438777,-3504.59622836,0.00036943,4]
[321059458,1711841438786,-507.67181471,0.00036944,4]
[321059461,1711841438796,-163.40042649,0.00036945,2]
[321059464,1711841438805,-1924.33153044,0.00036945,4]
[321061224,1711841463032,96.58149284,0.00036576,2]
[321061225,1711841463057,605.99746959,0.00036576,2]
[321061226,1711841463080,633.88616537,0.00036576,2]
[321061227,1711841556559,-17230.18435228,0.00036945,4]
[321061228,1711841601209,-158.87149199,0.00037142,8]
[321061229,1711841601231,-379.58877878,0.00037587,4]
[321061230,1711841601253,-154.93802479,0.00038354,4]
[321061231,1711841601275,-1252.60026268,0.00038354,4]
[321061232,1711841601297,-1504.18739567,0.00038354,4]
[321061233,1711841601319,-637.43086519,0.00038354,4]
[321061234,1711841601341,-160.06182639,0.00038354,4]
[321061235,1711841601363,-633.88616537,0.00038354,4]
[321061236,1711841601384,-251.79016085,0.00038355,4]
[321061237,1711841601406,-1163.45842756,0.00038355,4]
[321061238,1711841601430,-200.0,0.00038356,4]
[321061239,1711841601453,-500.0,0.00038356,4]
[321061240,1711841601481,-500.0,0.00038356,4]
[321061241,1711841601503,-500.0,0.00038356,4]
[321061242,1711841601524,-506.04395352,0.00038356,4]
[321061243,1711841601546,-500.0,0.00038356,4]
[321061244,1711841601568,-508.01497347,0.00038356,4]
[321061245,1711841601590,-500.0,0.00038356,4]
[321061246,1711841601610,-500.0,0.00038356,4]
[321061247,1711841601629,-500.0,0.00038356,4]
[321061248,1711841601651,-500.0,0.00038356,4]
[321061249,1711841601671,-503.17661683,0.00038356,4]
[321061250,1711841601692,-500.0,0.00038356,4]
[321061251,1711841601713,-500.0,0.00038356,4]
[321061252,1711841601733,-500.0,0.00038356,4]
[321061253,1711841601754,-500.0,0.00038356,4]
[321061254,1711841601774,-500.0,0.00038356,4]
[321061255,1711841601795,-500.0,0.00038356,4]
[321061256,1711841601814,-500.0,0.00038356,4]
[321061257,1711841601835,-1065.7,0.00038356,4]
[321061258,1711841601855,-500.0,0.00038356,4]
[321061259,1711841601876,-500.0,0.00038356,4]
[321061260,1711841601898,-500.0,0.00038356,4]
[321061261,1711841601919,-500.0,0.00038356,4]
[321061262,1711841601940,-1012.23,0.00038356,4]
[321061263,1711841601961,-229.48739594,0.00038356,4]
[321061264,1711841601981,-500.0,0.00038356,4]
[321061265,1711841602001,-1490.71,0.00038356,4]
[321061266,1711841602021,-967.98,0.00038356,4]
[321061267,1711841602041,-541.8237606,0.00038356,4]
[321061268,1711841602060,-593.36,0.00038356,4]
[321061269,1711841602081,-566.04,0.00038356,4]
[321061270,1711841602102,-500.0,0.00038356,4]
[321061271,1711841602122,-500.0,0.00038356,4]
[321061272,1711841602143,-500.0,0.00038356,4]
[321061273,1711841602164,-500.0,0.00038356,4]
[321061274,1711841602184,-500.0,0.00038356,4]
[321061275,1711841602205,-1216.01,0.00038356,4]
[321061276,1711841602225,-500.0,0.00038356,4]
[321061277,1711841602245,-500.0,0.00038356,4]
[321061278,1711841602271,-500.0,0.00038356,4]
[321061279,1711841602292,-5043.31,0.00038356,4]
[321061280,1711841602313,-500.0,0.00038356,4]
[321061281,1711841602335,-500.0,0.00038356,4]
[321061282,1711841602358,-1692.34,0.00038356,4]
[321061283,1711841602380,-1017.78,0.00038356,4]
[321061284,1711841602404,-892.18,0.00038356,4]
[321061285,1711841602426,-500.0,0.00038356,4]
[321061286,1711841602446,-500.0,0.00038356,4]
[321061287,1711841602475,-501.64,0.00038356,4]
[321061288,1711841602497,-2079.58,0.00038356,4]
[321061289,1711841602519,-3738.58,0.00038356,4]
[321061290,1711841602540,-2115.71,0.00038356,4]
[321061291,1711841602567,-500.0,0.00038356,4]
[321061292,1711841602589,-500.0,0.00038356,4]
[321061293,1711841602609,-1149.43,0.00038356,4]
[321061294,1711841602630,-500.0,0.00038356,4]
[321061295,1711841602652,-511.65547637,0.00038356,4]
[321061296,1711841602688,-18950.49,0.00038356,4]
[321061297,1711841602709,-500.0,0.00038356,4]
[321061298,1711841602731,-1143.32,0.00038356,4]
[321061299,1711841602753,-1023.43,0.00038356,4]
[321061300,1711841602775,-500.0,0.00038356,4]
[321061301,1711841602796,-500.0,0.00038356,4]
[321061302,1711841602818,-500.0,0.00038356,4]
[321061303,1711841602840,-550.08,0.00038356,4]
[321061304,1711841602861,-500.0,0.00038356,4]
[321061305,1711841602883,-500.0,0.00038356,4]
[321061306,1711841602905,-500.0,0.00038356,4]
[321061307,1711841602926,-500.0,0.00038356,4]
[321061308,1711841602948,-12942.66,0.00038356,4]
[321061309,1711841602968,-500.0,0.00038356,4]
[321061310,1711841602991,-500.0,0.00038356,4]
[321061311,1711841603012,-1000.0,0.00038356,7]
[321061312,1711841603033,-512.7,0.00038356,4]
[321061313,1711841603054,-3237.84,0.00038356,4]
[321061314,1711841603076,-847.35,0.00038356,4]
[321061315,1711841603097,-876.77,0.00038356,4]
[321061316,1711841603118,-500.0,0.00038356,4]
[321061317,1711841603144,-500.0,0.00038356,4]
[321061318,1711841603165,-500.0,0.00038356,4]
[321061319,1711841603186,-500.0,0.00038356,4]
[321061320,1711841603207,-500.0,0.00038356,4]
[321061321,1711841603338,-500.0,0.00038356,4]
[321061322,1711841603359,-908.78,0.00038356,4]
[321061323,1711841603381,-500.0,0.00038356,4]
[321061324,1711841603404,-503.6033047,0.00038356,4]
[321061325,1711841603424,-556.03,0.00038356,4]
[321061326,1711841603444,-500.0,0.00038356,4]
[321061327,1711841603468,-500.0,0.00038356,4]
[321061328,1711841603488,-500.0,0.00038356,4]
[321061329,1711841603508,-500.0,0.00038356,4]
[321061330,1711841603528,-500.0,0.00038356,4]
[321061331,1711841603549,-500.0,0.00038356,4]
[321061332,1711841603570,-500.0,0.00038356,4]
[321061333,1711841603591,-500.0,0.00038356,4]
[321061334,1711841603610,-2903.96,0.00038356,4]
[321061335,1711841603630,-500.0,0.00038356,4]
[321061336,1711841603650,-500.0,0.00038356,4]
[321061337,1711841603670,-500.0,0.00038356,4]
[321061338,1711841603690,-603.03319251,0.00038356,4]
[321061339,1711841603709,-500.0,0.00038356,4]
[321061340,1711841603729,-500.0,0.00038356,4]
[321061341,1711841603748,-500.0,0.00038356,4]
[321061342,1711841603767,-566.09024181,0.00038356,4]
[321061343,1711841603787,-1117.89,0.00038356,4]
[321061344,1711841603808,-150.89437394,0.00038544,4]
[321061345,1711841603828,-500.0,0.0003863,4]
[321061346,1711841603848,-500.0,0.0003863,4]
[321061347,1711841603868,-500.0,0.0003863,4]
[321061348,1711841603889,-500.0,0.0003863,4]
[321061349,1711841603909,-500.0,0.0003863,4]
[321061350,1711841603930,-500.0,0.0003863,4]
[321061351,1711841603950,-500.0,0.0003863,4]
[321061352,1711841603970,-500.0,0.0003863,4]
[321061353,1711841603990,-500.0,0.0003863,4]
[321061354,1711841604012,-500.0,0.0003863,4]
[321061355,1711841604032,-1065.7,0.0003863,4]
[321061356,1711841604052,-500.0,0.0003863,4]
[321061357,1711841604073,-500.0,0.0003863,4]
[321061358,1711841604093,-500.0,0.0003863,4]
[321061359,1711841604113,-500.0,0.0003863,4]
[321061360,1711841604134,-1012.23,0.0003863,4]
[321061361,1711841604155,-500.0,0.0003863,4]
[321061362,1711841604175,-1490.71,0.0003863,4]
[321061363,1711841604195,-967.98,0.0003863,4]
[321061364,1711841604216,-593.36,0.0003863,4]
[321061365,1711841604238,-566.04,0.0003863,4]
[321061366,1711841604260,-485.61760245,0.0003863,4]
[321061367,1711841604280,-500.0,0.0003863,4]
[321061368,1711841604301,-625.05501471,0.0003863,4]
[321061369,1711841604322,-500.0,0.0003863,4]
[321061370,1711841604342,-347.30981352,0.0003863,4]
[321061371,1711841604363,-1216.01,0.0003863,4]
[321061372,1711841604383,-500.0,0.0003863,4]
[321061373,1711841604406,-500.0,0.0003863,4]
[321061374,1711841604427,-500.0,0.0003863,4]
[321061375,1711841604449,-5043.31,0.0003863,4]
[321061376,1711841604472,-500.0,0.0003863,4]
[321061377,1711841604493,-500.0,0.0003863,4]
[321061378,1711841604514,-1692.34,0.0003863,4]
[321061379,1711841604536,-1017.78,0.0003863,4]
[321061380,1711841604559,-892.18,0.0003863,4]
[321061381,1711841604580,-500.0,0.0003863,4]
[321061382,1711841604601,-500.0,0.0003863,4]
[321061383,1711841604622,-501.64,0.0003863,4]
[321061384,1711841604646,-2079.58,0.0003863,4]
[321061385,1711841604666,-3738.58,0.0003863,4]
[321061386,1711841604688,-2115.71,0.0003863,4]
[321061387,1711841604710,-500.0,0.0003863,4]
[321061388,1711841604731,-500.0,0.0003863,4]
[321061389,1711841604753,-1149.43,0.0003863,4]
[321061390,1711841604776,-500.0,0.0003863,4]
[321061391,1711841604798,-18950.49,0.0003863,4]
[321061392,1711841604820,-500.0,0.0003863,4]
[321061393,1711841604842,-1143.32,0.0003863,4]
[321061394,1711841604865,-1023.43,0.0003863,4]
[321061395,1711841604888,-500.0,0.0003863,4]
[321061396,1711841604910,-550.08,0.0003863,4]
[321061397,1711841604930,-500.0,0.0003863,4]
[321061398,1711841604950,-500.0,0.0003863,4]
[321061399,1711841604971,-500.0,0.0003863,4]
[321061400,1711841604992,-12942.66,0.0003863,4]
[321061401,1711841605012,-1000.0,0.0003863,7]
[321061402,1711841605032,-512.7,0.0003863,4]
[321061403,1711841605052,-3237.84,0.0003863,4]
[321061404,1711841605073,-847.35,0.0003863,4]
[321061405,1711841605096,-876.77,0.0003863,4]
[321061406,1711841605116,-500.0,0.0003863,4]
[321061407,1711841605137,-500.0,0.0003863,4]
[321061408,1711841605158,-908.78,0.0003863,4]
[321061409,1711841605179,-556.03,0.0003863,4]
[321061410,1711841605199,-500.0,0.0003863,4]
[321061411,1711841605219,-500.0,0.0003863,4]
[321061412,1711841605320,-500.0,0.0003863,4]
[321061413,1711841605343,-2903.96,0.0003863,4]
[321061414,1711841605365,-500.0,0.0003863,4]
[321061415,1711841605388,-1117.89,0.0003863,4]
[321061416,1711841605410,-500.0,0.00038904,4]
[321061417,1711841605431,-500.0,0.00038904,4]
[321061418,1711841605451,-500.0,0.00038904,4]
[321061419,1711841605476,-500.0,0.00038904,4]
[321061420,1711841605496,-500.0,0.00038904,4]
[321061421,1711841605518,-500.0,0.00038904,4]
[321061422,1711841605539,-500.0,0.00038904,4]
[321061423,1711841605563,-500.0,0.00038904,4]
[321061424,1711841605585,-500.0,0.00038904,4]
[321061425,1711841605606,-500.0,0.00038904,4]
[321061426,1711841605627,-1065.7,0.00038904,4]
[321061427,1711841605649,-500.0,0.00038904,4]
[321061428,1711841605670,-500.0,0.00038904,4]
[321061429,1711841605692,-500.0,0.00038904,4]
[321061430,1711841605713,-500.0,0.00038904,4]
[321061431,1711841605735,-1012.23,0.00038904,4]
[321061432,1711841605757,-500.0,0.00038904,4]
[321061433,1711841605777,-1490.71,0.00038904,4]
[321061434,1711841605798,-967.98,0.00038904,4]
[321061435,1711841605819,-593.36,0.00038904,4]
[321061436,1711841605841,-566.04,0.00038904,4]
[321061437,1711841605861,-500.0,0.00038904,4]
[321061438,1711841605882,-500.0,0.00038904,4]
[321061439,1711841605903,-1216.01,0.00038904,4]
[321061440,1711841605923,-500.0,0.00038904,4]
[321061441,1711841605943,-500.0,0.00038904,4]
[321061442,1711841605964,-500.0,0.00038904,4]
[321061443,1711841605985,-81.59088036,0.00038904,4]
[321061444,1711841868497,1500.0,0.00036001,2]
[321061445,1711841910644,9964.60264177,0.00035641,2]
[321061446,1711841928590,1539.06170313,0.00035641,2]
[321061447,1711842160534,154.8915759,0.00035589,4]
[321061448,1711842182486,155.87891315,0.00035589,4]
[321061449,1711842327569,202.334187,0.00035537,120]
[321061450,1711842345128,-359.37989153,0.00036001,2]
[321061451,1711842345149,-90.6381458,0.00036001,2]
[321061452,1711842407558,155.44733163,0.00035918,4]
[321061453,1711842414779,-193.20616723,0.00037463,120]
[321061454,1711842438099,-64.2534301,0.00036001,2]
[321061455,1711842438119,-171.295322,0.00036002,2]
[321061456,1711842438139,-327.925586,0.00036276,2]
[321061457,1711842438158,-89.5256619,0.00036415,2]
[321061458,1711842441108,-1071.6637927,0.00036415,2]
[321061459,1711842538219,1610.62602103,0.00034176,2]
[321061464,1711842547130,-2711.7471774,0.00036415,2]
[321061465,1711842547150,-287.46979491,0.00036436,4]
[321061466,1711842547171,-163.962793,0.00036449,2]
[321061467,1711842547191,-451.72690167,0.00036651,4]
[321061468,1711842547211,-360.64453521,0.00036651,2]
[321061469,1711842547231,-194.99358243,0.00036651,2]
[321061470,1711842547251,-169.34638279,0.00036652,4]
[321061471,1711842547274,-24900.0,0.00036653,2]
[321061521,1711842637886,-335.53837222,0.00037142,2]
[321061522,1711842637896,-998.0085015,0.00037324,2]
[321061523,1711842637905,-1571.06773733,0.00037463,4]
[321061524,1711842637914,-317.02569048,0.00037489,2]
[321061560,1711842645078,-18.51268174,0.00037489,2]
[321061561,1711842645091,-335.53837222,0.00037836,2]
[321061562,1711842645100,-202.0622477,0.00038182,2]
[321061563,1711842645110,-335.53837222,0.00038183,2]
[321061564,1711842645120,-162.11772867,0.00038354,2]
[321061565,1711842645129,-193.20616723,0.00038355,120]
[321061566,1711842645139,-518.28,0.00038356,4]
[321061567,1711842645148,-500.0,0.00038356,4]
[321061568,1711842645158,-500.0,0.00038356,4]
[321061569,1711842645168,-500.0,0.00038356,4]
[321061570,1711842645178,-500.0,0.00038356,4]
[321061571,1711842645188,-500.0,0.00038356,4]
[321061572,1711842645197,-932.49,0.00038356,4]
[321061573,1711842645206,-956.3,0.00038356,2]
[321061574,1711842645215,-605.99746959,0.00038356,4]
[321061575,1711842645226,-500.0,0.00038356,4]
[321061576,1711842645235,-1000.0,0.00038356,7]
[321061577,1711842645245,-500.0,0.00038356,4]
[321061578,1711842645255,-776.74,0.00038356,4]
[321061579,1711842645264,-500.0,0.00038356,4]
[321061580,1711842645274,-500.0,0.00038356,4]
[321061581,1711842645284,-500.0,0.00038356,4]
[321061582,1711842645293,-509.7,0.00038356,4]
[321061583,1711842645303,-500.0,0.00038356,4]
[321061584,1711842645312,-147.0928841,0.00038356,4]
[321061587,1711842645909,-347.975,0.00038356,4]
[321061588,1711842658294,155.84000164,0.00032988,4]
[321061604,1711843552446,-495.93843885,0.00036255,4]
[321061605,1711843632713,-553.91192879,0.00036255,4]
[321061606,1711843632733,-154.8915759,0.00036255,4]
[321061607,1711843632753,-593.92965845,0.00036256,2]
[321061608,1711843645120,-653.0,0.00036256,2]
[321061609,1711843651089,-115.41052281,0.00036256,2]
[321061610,1711843651116,-169.668219,0.00036491,2]
[321061611,1711843651140,-163.962793,0.00036722,2]
[321061612,1711843651163,-400.0,0.00036789,3]
[321061613,1711843651188,-499.394833,0.0003679,2]
[321061623,1711843744210,908.2267875,0.0003469,2]
[321061624,1711843745127,-11177.4655693,0.0003679,2]
[321061625,1711843745151,-171.295321,0.00036811,2]
[321061626,1711843746095,400.0,0.00036789,3]
[321061652,1711843832002,-281.7045139,0.00037129,2]
[321061654,1711843832012,-8024.0058587,0.0003713,2]
[321061656,1711843832022,-1661.57927562,0.00037355,4]
[321061657,1711843832031,-153.0,0.00038082,2]
[321061658,1711843832040,-163.58638895,0.00038243,2]
[321061660,1711843832050,-177.9596265,0.00038253,2]
[321061662,1711843832059,-177.95962648,0.00038254,2]
[321061663,1711843832068,-177.95962648,0.00038255,2]
[321061664,1711843832078,-177.95962648,0.00038255,2]
[321061665,1711843832087,-674.00982984,0.00038256,2]
[321061666,1711843832097,-177.95962648,0.00038256,2]
[321061667,1711843832106,-10066.43947587,0.0003831,120]
[321061668,1711843832115,-167.45777291,0.00038352,4]
[321061669,1711843832125,-231.25817864,0.00038352,4]
[321061670,1711843832135,-433.85832866,0.00038352,4]
[321061671,1711843832144,-231.59124805,0.00038352,4]
[321061672,1711843832154,-2780.02750102,0.00038353,2]
[321061673,1711843832164,-210.52208177,0.00038354,4]
[321061674,1711843832172,-5547.25657352,0.00038354,4]
[321061675,1711843832181,-1568.2435482,0.00038354,2]
[321061676,1711843832191,-359.79078531,0.00038354,4]
[321061677,1711843832200,-626.45664891,0.00038354,4]
[321061678,1711843832209,-154.98450155,0.00038354,4]
[321061679,1711843832218,-1574.70395347,0.00038354,4]
[321061680,1711843832228,-932.29248123,0.00038354,4]
[321061681,1711843832237,-1611.4399762,0.00038354,4]
[321061682,1711843832247,-271.17349342,0.00038354,2]
[321061683,1711843832256,-47408.66723651,0.00038354,4]
[321061684,1711843832265,-155.01549845,0.00038354,4]
[321061685,1711843832275,-302.46060216,0.00038354,4]
[321061686,1711843832283,-3446.43692103,0.00038354,4]
[321061687,1711843832293,-281.29945541,0.00038355,4]
[321061688,1711843832302,-1044.74347552,0.00038355,4]
[321061689,1711843832312,-916.45,0.00038356,2]
[321061690,1711843832322,-500.0,0.00038356,4]
[321061691,1711843832331,-500.0,0.00038356,4]
[321061692,1711843832341,-500.0,0.00038356,4]
[321061693,1711843832351,-500.0,0.00038356,4]
[321061694,1711843832360,-580.13411595,0.00038356,4]
[321061695,1711843832370,-500.0,0.00038356,4]
[321061696,1711843832379,-500.0,0.00038356,4]
[321061697,1711843832389,-500.0,0.00038356,4]
[321061698,1711843832398,-500.0,0.00038356,4]
[321061699,1711843832407,-500.0,0.00038356,4]
[321061700,1711843832417,-500.0,0.00038356,4]
[321061701,1711843832426,-500.0,0.00038356,4]
[321061702,1711843832435,-500.0,0.00038356,4]
[321061703,1711843832444,-500.0,0.00038356,4]
[321061704,1711843832454,-500.0,0.00038356,4]
[321061705,1711843832463,-500.0,0.00038356,4]
[321061706,1711843832471,-500.0,0.00038356,4]
[321061707,1711843832481,-500.0,0.00038356,4]
[321061708,1711843832490,-500.0,0.00038356,4]
[321061709,1711843832499,-500.0,0.00038356,4]
[321061710,1711843832508,-500.0,0.00038356,4]
[321061711,1711843832517,-500.0,0.00038356,4]
[321061712,1711843832526,-500.0,0.00038356,4]
[321061713,1711843832535,-500.0,0.00038356,4]
[321061714,1711843832544,-500.0,0.00038356,4]
[321061715,1711843832553,-502.25509446,0.00038356,4]
[321061716,1711843832562,-500.0,0.00038356,4]
[321061717,1711843832571,-500.0,0.00038356,4]
[321061718,1711843832580,-500.0,0.00038356,4]
[321061719,1711843832589,-500.0,0.00038356,4]
[321061720,1711843832598,-500.0,0.00038356,4]
[321061721,1711843832608,-500.0,0.00038356,30]
[321061722,1711843832617,-500.0,0.00038356,4]
[321061723,1711843832626,-500.0,0.00038356,4]
[321061724,1711843832635,-500.0,0.00038356,4]
[321061725,1711843832645,-500.0,0.00038356,4]
[321061726,1711843832655,-500.0,0.00038356,4]
[321061727,1711843832663,-500.0,0.00038356,4]
[321061728,1711843832673,-502.5883259,0.00038356,4]
[321061729,1711843832682,-500.0,0.00038356,4]
[321061731,1711843832692,-502.9888996,0.00038356,4]
[321061732,1711843832701,-501.99689691,0.00038356,4]
[321061733,1711843832710,-501.76111315,0.00038356,4]
[321061734,1711843832719,-500.0,0.00038356,4]
[321061735,1711843832728,-500.0,0.00038356,4]
[321061736,1711843832738,-501.10335025,0.00038356,4]
[321061737,1711843832747,-500.0,0.00038356,4]
[321061738,1711843832756,-502.60245389,0.00038356,4]